Workbook

Sheet 文具及后勤
A1: 东莞市水务集团建设管理有限公司2025年第一季度文具及后勤物品采购项目分项报价表
A2: 序号 | B2: 名称 | C2: 规格型号 | D2: 汇总数量 | E2: 单位 | F2: 单价报价（元） 不含税 | G2: 总价报价（元） 不含税 | H2: 报价品牌型号 | I2: 产品图片 | J2: 备注
A3: =SUBTOTAL(103,$B$2:B2)*1 -> 1 | B3: 中性按钮笔 | C3: GP1008 ；0.5mm；12支/盒 | D3: 26 | E3: 盒
A4: =SUBTOTAL(103,$B$2:B3)*1 -> 2 | B4: 中性签字笔 | C4: 白雪牌；0.5mm；12支/盒 | D4: 19 | E4: 盒
A5: =SUBTOTAL(103,$B$2:B4)*1 -> 3 | B5: 铅笔 | C5: 2B；12支/盒 | D5: 6 | E5: 盒
A6: =SUBTOTAL(103,$B$2:B5)*1 -> 4 | B6: 削笔器 | C6: 手动 | D6: 2 | E6: 个
A7: =SUBTOTAL(103,$B$2:B6)*1 -> 5 | B7: 荧光笔套装 | C7: 6色；6支/盒 | D7: 6 | E7: 盒
A8: =SUBTOTAL(103,$B$2:B7)*1 -> 6 | B8: 白板笔 | C8: 10支/盒 | D8: 5 | E8: 盒
A9: =SUBTOTAL(103,$B$2:B8)*1 -> 7 | B9: 充电电池 | C9: 镍氢电池5号；1700mAh | D9: 8 | E9: 颗
A10: 8 | B10: 电池 | C10: 5号；简装40粒一盒 | D10: 18 | E10: 盒
A11: =SUBTOTAL(103,$B$2:B10)*1 -> 9 | B11: 电池 | C11: 7号；简装40粒一盒 | D11: 11 | E11: 盒
A12: =SUBTOTAL(103,$B$2:B11)*1 -> 10 | B12: 长尾夹 | C12: 15mm；60只/筒 | D12: 32 | E12: 筒
A13: =SUBTOTAL(103,$B$2:B12)*1 -> 11 | B13: 长尾夹 | C13: 19mm；40只/筒 | D13: 22 | E13: 筒
A14: =SUBTOTAL(103,$B$2:B13)*1 -> 12 | B14: 长尾夹 | C14: 25mm； 48只/筒 | D14: 12 | E14: 筒
A15: =SUBTOTAL(103,$B$2:B14)*1 -> 13 | B15: 长尾夹 | C15: 50mm；12只/筒 | D15: 12 | E15: 筒
A16: =SUBTOTAL(103,$B$2:B15)*1 -> 14 | B16: 不锈钢蝴蝶夹 | C16: 山型夹145mm | D16: 17 | E16: 只
A17: =SUBTOTAL(103,$B$2:B16)*1 -> 15 | B17: 美工刀 | C17: 9mm；自锁 | D17: 3 | E17: 把
A18: =SUBTOTAL(103,$B$2:B17)*1 -> 16 | B18: 笔记本 | C18: A5/25k；145mm*212mm；封面仿皮烫银，内页80克道林纸灰色印刷，100页/本，含插销，不少于3个插卡位置，含北京、上海、广州、东莞地铁图 | D18: 42 | E18: 本
A19: =SUBTOTAL(103,$B$2:B18)*1 -> 17 | B19: 软抄本 | C19: A5 | D19: 7 | E19: 本
A20: =SUBTOTAL(103,$B$2:B19)*1 -> 18 | B20: 直尺 | C20: 30cm；塑料 | D20: 8 | E20: 把
A21: =SUBTOTAL(103,$B$2:B20)*1 -> 19 | B21: 回形针 | C21: 普通；29mm；100个/盒 | D21: 13 | E21: 盒
A22: =SUBTOTAL(103,$B$2:B21)*1 -> 20 | B22: A4复印纸 | C22: A4；80g/m2；108um厚；96.4%不透明度；零尘埃度；500张/包；5包/箱 | D22: 93 | E22: 箱
A23: =SUBTOTAL(103,$B$2:B22)*1 -> 21 | B23: 红色A4复印纸 | C23: A4；80g/m2；108um厚；96.4%不透明度；零尘埃度；500张/包；5包/箱 | D23: 4 | E23: 箱
A24: =SUBTOTAL(103,$B$2:B23)*1 -> 22 | B24: 黄色A4复印纸 | C24: A4；80g/m2；108um厚；96.4%不透明度；零尘埃度；500张/包；5包/箱 | D24: 3 | E24: 箱
A25: =SUBTOTAL(103,$B$2:B24)*1 -> 23 | B25: A3复印纸 | C25: A3；80g/m2；108um厚；96.4%不透明度；零尘埃度；500张/包 | D25: 3 | E25: 包
A26: =SUBTOTAL(103,$B$2:B25)*1 -> 24 | B26: A3复印纸 | C26: A3；80g/m2；108um厚；96.4%不透明度；零尘埃度；500张/包；5包/箱 | D26: 11 | E26: 箱
A27: =SUBTOTAL(103,$B$2:B26)*1 -> 25 | B27: 透明文件袋 | C27: A4，按扣，10个装 | D27: 33 | E27: 包
A28: =SUBTOTAL(103,$B$2:B27)*1 -> 26 | B28: 档案盒 | C28: A4；75mm；PP材质；蓝色；硬纸板；带夹 | D28: 65 | E28: 个
A29: =SUBTOTAL(103,$B$2:B28)*1 -> 27 | B29: 双强力文件夹 | C29: A4金属 | D29: 30 | E29: 个
A30: =SUBTOTAL(103,$B$2:B29)*1 -> 28 | B30: 透明胶带 | C30: 60mm*100y | D30: 8 | E30: 卷
A31: =SUBTOTAL(103,$B$2:B30)*1 -> 29 | B31: 双面胶带 | C31: 9mm*10y(9.1m) | D31: 7 | E31: 卷
A32: =SUBTOTAL(103,$B$2:B31)*1 -> 30 | B32: 双面胶带 | C32: 30mm*3m；魔力胶带；透明 | D32: 7 | E32: 卷
A33: =SUBTOTAL(103,$B$2:B32)*1 -> 31 | B33: 透明书写板 | C33: A4 | D33: 5 | E33: 块
A34: =SUBTOTAL(103,$B$2:B33)*1 -> 32 | B34: 便利贴 | C34: 76*76mm；100张/包；单色 | D34: 45 | E34: 包
A35: =SUBTOTAL(103,$B$2:B34)*1 -> 33 | B35: 便利标签 | C35: 76*19mm；四色荧光色；4pcs*100张 | D35: 35 | E35: 包
A36: =SUBTOTAL(103,$B$2:B35)*1 -> 34 | B36: 便利标签 | C36: 44mm*7mm；半色平头，可书写 | D36: 20 | E36: 包
A37: =SUBTOTAL(103,$B$2:B36)*1 -> 35 | B37: 橡皮擦 | C37: 小号；2B；白 | D37: 17 | E37: 块
A38: =SUBTOTAL(103,$B$2:B37)*1 -> 36 | B38: 全沙橡皮擦 | C38: 17*68*7mm | D38: 13 | E38: 块
A39: =SUBTOTAL(103,$B$2:B38)*1 -> 37 | B39: 橡筋圈 | C39: 100g | D39: 11 | E39: 盒
A40: =SUBTOTAL(103,$B$2:B39)*1 -> 38 | B40: 文件盘 | C40: 三层；镂空 | D40: 1 | E40: 个
A41: =SUBTOTAL(103,$B$2:B40)*1 -> 39 | B41: 资料架子 | C41: 三层 | D41: 1 | E41: 个
A42: =SUBTOTAL(103,$B$2:B41)*1 -> 40 | B42: 取钉器 | D42: 12 | E42: 个
A43: =SUBTOTAL(103,$B$2:B42)*1 -> 41 | B43: 排插 | C43: GNV-UE2240；白色魔方6位插座；1.8米 | D43: 5 | E43: 个
A44: =SUBTOTAL(103,$B$2:B43)*1 -> 42 | B44: 排插 | C44: GNV-UE2240；白色魔方6位插座；3米 | D44: 5 | E44: 个
A45: =SUBTOTAL(103,$B$2:B44)*1 -> 43 | B45: 科学函数计算器 | C45: FX-82ES PLUS | D45: 3 | E45: 个
A46: =SUBTOTAL(103,$B$2:B45)*1 -> 44 | B46: 胶水 | C46: 125ml | D46: 7 | E46: 支
A47: =SUBTOTAL(103,$B$2:B46)*1 -> 45 | B47: 磁贴 | C47: 20cm；蓝色 | D47: 18 | E47: 条
A48: =SUBTOTAL(103,$B$2:B47)*1 -> 46 | B48: 文件篮子 | C48: A4 | D48: 1 | E48: 个
A49: =SUBTOTAL(103,$B$2:B48)*1 -> 47 | B49: 剪刀 | C49: 175mm | D49: 22 | E49: 把
A50: =SUBTOTAL(103,$B$2:B49)*1 -> 48 | B50: 笔筒 | D50: 12 | E50: 个
A51: =SUBTOTAL(103,$B$2:B50)*1 -> 49 | B51: 国旗 | C51: 2号 | D51: 4 | E51: 面
A52: =SUBTOTAL(103,$B$2:B51)*1 -> 50 | B52: 红旗 | C52: 3号 | D52: 8 | E52: 面
A53: =SUBTOTAL(103,$B$2:B52)*1 -> 51 | B53: 订书机 | C53: 手握式，得力0346 | D53: 10 | E53: 个
A54: =SUBTOTAL(103,$B$2:B53)*1 -> 52 | B54: 订书钉 | C54: 24/6；1000枚/盒 | D54: 35 | E54: 盒
A55: =SUBTOTAL(103,$B$2:B54)*1 -> 53 | B55: 订书钉 | C55: 23/10；500枚/盒;10盒装 | D55: 30 | E55: 盒
A56: =SUBTOTAL(103,$B$2:B55)*1 -> 54 | B56: 订书钉 | C56: 10#，1000枚/盒 | D56: 10 | E56: 盒
A57: =SUBTOTAL(103,$B$2:B56)*1 -> 55 | B57: 印台 | C57: 朱肉；φ80mm | D57: 7 | E57: 个
A58: =SUBTOTAL(103,$B$2:B57)*1 -> 56 | B58: 印油 | C58: 40ml | D58: 8 | E58: 瓶
A59: =SUBTOTAL(103,$B$2:B58)*1 -> 57 | B59: 防割垫 | C59: A3大小防割垫 | D59: 2 | E59: 张
A60: =SUBTOTAL(103,$B$2:B59)*1 -> 58 | B60: 涂改液 | C60: 12ml | D60: 2 | E60: 支
A61: =SUBTOTAL(103,$B$2:B60)*1 -> 59 | B61: 标签纸 | C61: 51*38mm 单中线；12枚/张；58张/包 | D61: 1 | E61: 包
A62: =SUBTOTAL(103,$B$2:B61)*1 -> 60 | B62: 抽杆夹 | C62: 9mm，蓝色 | D62: 20 | E62: 个
A63: =SUBTOTAL(103,$B$2:B62)*1 -> 61 | B63: 抽杆夹 | C63: 14mm，蓝色 | D63: 7 | E63: 个
A64: =SUBTOTAL(103,$B$2:B63)*1 -> 62 | B64: 抽杆夹 | C64: 25mm，蓝色 | D64: 20 | E64: 个
A65: =SUBTOTAL(103,$B$2:B64)*1 -> 63 | B65: 5号信封 | C65: 60个装 | D65: 5 | E65: 包
A66: =SUBTOTAL(103,$B$2:B65)*1 -> 64 | B66: 9号信封 | C66: 40个装 | D66: 5 | E66: 包
A67: =SUBTOTAL(103,$B$2:B66)*1 -> 65 | B67: 凭证封面 | C67: 连背款；A4规格；280g牛皮纸；24mm凭证厚度；50个/套 | D67: 5 | E67: 套
A68: =SUBTOTAL(103,$B$2:B67)*1 -> 66 | B68: 档案袋 | C68: A4规格；侧宽3cm；180g | D68: 21 | E68: 个
A69: =SUBTOTAL(103,$B$2:B68)*1 -> 67 | B69: A4磁吸框 | C69: a4带背胶磁性贴； 外框尺寸：325x238mm 内纸尺寸：297x210mm | D69: 10 | E69: 块
A70: =SUBTOTAL(103,$B$2:B69)*1 -> 68 | B70: 玻璃白板 | C70: 150*90cm；磁性钢化玻璃带架子 | D70: 1 | E70: 块
A71: =SUBTOTAL(103,$B$2:B70)*1 -> 69 | B71: 卷尺 | C71: 5m | D71: 3 | E71: 个
A72: =SUBTOTAL(103,$B$2:B71)*1 -> 70 | B72: 皮尺 | C72: 50m | D72: 1 | E72: 个
A73: =SUBTOTAL(103,$B$2:B72)*1 -> 71 | B73: 抽纸 | C73: 型号：V2182；中号抽纸（48包/箱）；150抽/包；三层；153mm*195mm/张 | D73: 36 | E73: 箱
A74: =SUBTOTAL(103,$B$2:B73)*1 -> 72 | B74: 盒装面巾纸 | C74: 200抽/盒；二层；36盒/箱 | D74: 9 | E74: 箱
A75: =SUBTOTAL(103,$B$2:B74)*1 -> 73 | B75: 擦手纸 | C75: 200抽；三层超韧；20包/箱 | D75: 22 | E75: 箱
A76: =SUBTOTAL(103,$B$2:B75)*1 -> 74 | B76: 大卷纸 | C76: JX003-12B;850克/卷;12卷一箱 | D76: 15 | E76: 箱
A77: =SUBTOTAL(103,$B$2:B76)*1 -> 75 | B77: 手帕纸 | C77: 4层；8张；36包/一件 | D77: 2 | E77: 件
A78: =SUBTOTAL(103,$B$2:B77)*1 -> 76 | B78: 厨房用纸 | C78: 80抽*12包 | D78: 3 | E78: 件
A79: =SUBTOTAL(103,$B$2:B78)*1 -> 77 | B79: 湿纸巾 | C79: 180x180mm；10片/包；独立包装 | D79: 10 | E79: 包
A80: =SUBTOTAL(103,$B$2:B79)*1 -> 78 | B80: 一次性餐盒 | C80: 可降解；6格；1400ml；带盖 | D80: 200 | E80: 个
A81: =SUBTOTAL(103,$B$2:B80)*1 -> 79 | B81: 一次性打包盒 | C81: 可降解；1000ml；带盖 | D81: 200 | E81: 个
A82: =SUBTOTAL(103,$B$2:B81)*1 -> 80 | B82: 一次性汤盒 | C82: 可降解；500ml；带盖 | D82: 300 | E82: 个
A83: =SUBTOTAL(103,$B$2:B82)*1 -> 81 | B83: 打包袋 | C83: 可降解；背心款；透明白色；30cm*40cm | D83: 300 | E83: 个
A84: =SUBTOTAL(103,$B$2:B83)*1 -> 82 | B84: 筷子 | C84: 耐高温；黑色合金筷；一包10双 | D84: 100 | E84: 包
A85: =SUBTOTAL(103,$B$2:B84)*1 -> 83 | B85: 一次性杯子 | C85: 60只装；竹纤维；230ml | D85: 40 | E85: 包
A86: =SUBTOTAL(103,$B$2:B85)*1 -> 84 | B86: 酒精 | C86: 75%酒精；喷雾；500ml | D86: 15 | E86: 支
A87: =SUBTOTAL(103,$B$2:B86)*1 -> 85 | B87: 洗手液 | C87: 300g；抑菌泡沫洗手液 | D87: 40 | E87: 支
A88: =SUBTOTAL(103,$B$2:B87)*1 -> 86 | B88: 洗洁精 | C88: 20KG | D88: 25 | E88: 桶
A89: =SUBTOTAL(103,$B$2:B88)*1 -> 87 | B89: 杀虫剂喷雾 | C89: 600ml；无香 | D89: 2 | E89: 瓶
A90: =SUBTOTAL(103,$B$2:B89)*1 -> 88 | B90: 碧丽珠 | C90: 330ml | D90: 2 | E90: 瓶
A91: =SUBTOTAL(103,$B$2:B90)*1 -> 89 | B91: 威猛先生洁厕灵 | C91: 600g；含84精华 | D91: 10 | E91: 支
A92: =SUBTOTAL(103,$B$2:B91)*1 -> 90 | B92: 下水道疏通剂 | C92: 500g | D92: 2 | E92: 支
A93: =SUBTOTAL(103,$B$2:B92)*1 -> 91 | B93: 油污净 | C93: 500g以上 | D93: 5 | E93: 支
A94: =SUBTOTAL(103,$B$2:B93)*1 -> 92 | B94: 金宝钟绿水 | C94: 1升 | D94: 5 | E94: 支
A95: =SUBTOTAL(103,$B$2:B94)*1 -> 93 | B95: 消毒液 | C95: 1.2L；杀菌99.999% | D95: 30 | E95: 瓶
A96: =SUBTOTAL(103,$B$2:B95)*1 -> 94 | B96: 玻璃水 | C96: 500ml；有喷头 | D96: 20 | E96: 瓶
A97: =SUBTOTAL(103,$B$2:B96)*1 -> 95 | B97: 雨伞 | C97: 32寸安全开关直骨伞；190深蓝色黑胶布；印刷白色字体;纽扣式 | D97: 20 | E97: 把 | J97: 具体款式请找甲方确认
A98: =SUBTOTAL(103,$B$2:B97)*1 -> 96 | B98: 厨师帽 | C98: 白色；透气松紧网帽 | D98: 5 | E98: 顶
A99: =SUBTOTAL(103,$B$2:B98)*1 -> 97 | B99: 厨师服 | C99: 短袖；白色；双排扣 | D99: 10 | E99: 件 | J99: 厨师厨工定期替换
A100: =SUBTOTAL(103,$B$2:B99)*1 -> 98 | B100: 保洁服 | C100: 立领；米白；短袖 | D100: 4 | E100: 件
A101: =SUBTOTAL(103,$B$2:B100)*1 -> 99 | B101: 尿斗香块 | C101: 120g/块 | D101: 50 | E101: 块
A102: =SUBTOTAL(103,$B$2:B101)*1 -> 100 | B102: 扫把簸箕套装 | C102: 可折叠直立收纳旋转 | D102: 5 | E102: 把
A103: =SUBTOTAL(103,$B$2:B102)*1 -> 101 | B103: 竹扫把 | C103: 150cm*60cm | D103: 2 | E103: 把
A104: =SUBTOTAL(103,$B$2:B103)*1 -> 102 | B104: 免手洗平板 | C104: 36CM；配2块抑菌拖布 | D104: 10 | E104: 把
A105: =SUBTOTAL(103,$B$2:B104)*1 -> 103 | B105: 刮水拖把 | C105: 50cm多功能使用 | D105: 4 | E105: 个
A106: =SUBTOTAL(103,$B$2:B105)*1 -> 104 | B106: 一次性马桶刷拖把 | C106: 1杆+12只刷头 | D106: 5 | E106: 个
A107: =SUBTOTAL(103,$B$2:B106)*1 -> 105 | B107: V型地缝刷 | D107: 2 | E107: 把
A108: =SUBTOTAL(103,$B$2:B107)*1 -> 106 | B108: 洗锅刷 | C108: 长100 cm以上 | D108: 3 | E108: 个
A109: =SUBTOTAL(103,$B$2:B108)*1 -> 107 | B109: 304不锈钢锅刷 | D109: 5 | E109: 把
A110: =SUBTOTAL(103,$B$2:B109)*1 -> 108 | B110: 海绵擦 | C110: 80片/包 | D110: 3 | E110: 箱
A111: =SUBTOTAL(103,$B$2:B110)*1 -> 109 | B111: 百洁布 | C111: 天然木浆棉百洁布5片装 | D111: 10 | E111: 块
A112: =SUBTOTAL(103,$B$2:B111)*1 -> 110 | B112: 丝瓜络 | D112: 5 | E112: 块
A113: =SUBTOTAL(103,$B$2:B112)*1 -> 111 | B113: 飘逸壶 | C113: 1升 | D113: 6 | E113: 个
A114: =SUBTOTAL(103,$B$2:B113)*1 -> 112 | B114: 分类垃圾桶 | C114: 不锈钢；大号脚踏带盖；18L；其他垃圾+可回收物 | D114: 2 | E114: 个
A115: =SUBTOTAL(103,$B$2:B114)*1 -> 113 | B115: 塑料周转箱 | C115: 收纳箱物料盒收纳盒 蓝色650*400*150 | D115: 3 | E115: 个
A116: =SUBTOTAL(103,$B$2:B115)*1 -> 114 | B116: 金橡牌水鞋 | C116: 鞋底：牛筋大底；内里：透气棉布；材质：PVC | D116: 5 | E116: 双
A117: =SUBTOTAL(103,$B$2:B116)*1 -> 115 | B117: 小垃圾袋 | C117: 手提式；加厚；黑色背心带；32*52cm；50个 | D117: 70 | E117: 扎
A118: =SUBTOTAL(103,$B$2:B117)*1 -> 116 | B118: 大垃圾袋 | C118: 90*110cm；50个；加厚 | D118: 40 | E118: 扎
A119: =SUBTOTAL(103,$B$2:B118)*1 -> 117 | B119: 中垃圾袋 | C119: 70*83cm；加厚；50只装 | D119: 20 | E119: 扎
A120: =SUBTOTAL(103,$B$2:B119)*1 -> 118 | B120: 食用小苏打粉 | C120: 185g/瓶；清洁杯具用 | D120: 2 | E120: 个
A121: =SUBTOTAL(103,$B$2:B120)*1 -> 119 | B121: 食品留样盒 | C121: 6格组合1800ml(配标签） | D121: 8 | E121: 个
A122: =SUBTOTAL(103,$B$2:B121)*1 -> 120 | B122: 食品级手套 | C122: PVC；一次性；100只/盒；透明 | D122: 20 | E122: 盒
A123: =SUBTOTAL(103,$B$2:B122)*1 -> 121 | B123: 长手套 | C123: 乳胶；特厚；95克 | D123: 40 | E123: 对
A124: =SUBTOTAL(103,$B$2:B123)*1 -> 122 | B124: 围裙 | C124: 加厚；防水防油；透明 | D124: 15 | E124: 条
A125: =SUBTOTAL(103,$B$2:B124)*1 -> 123 | B125: 餐夹 | C125: 不锈钢；长度26cm，304不锈钢 | D125: 2 | E125: 个
A126: =SUBTOTAL(103,$B$2:B125)*1 -> 124 | B126: 物斗 | C126: 不锈钢304；长度16cm | D126: 10 | E126: 个
A127: =SUBTOTAL(103,$B$2:B126)*1 -> 125 | B127: 毛巾 | C127: 蓝色；35cm*70cm | D127: 40 | E127: 条
A128: =SUBTOTAL(103,$B$2:B127)*1 -> 126 | B128: 茶巾 | C128: 30*30cm | D128: 2 | E128: 块
A129: =SUBTOTAL(103,$B$2:B128)*1 -> 127 | B129: 保鲜膜 | C129: PVC材质 400m*45cm | D129: 5 | E129: 卷
A130: =SUBTOTAL(103,$B$2:B129)*1 -> 128 | B130: 粘钩 | D130: 20 | E130: 个
A131: =SUBTOTAL(103,$B$2:B130)*1 -> 129 | B131: 自锁式尼龙扎带 | C131: 自锁式尼龙扎带；200支 | D131: 1 | E131: 包
A132: =SUBTOTAL(103,$B$2:B131)*1 -> 130 | B132: 红地毯 | C132: 长180cm*宽80cm；绒面 | D132: 6 | E132: 张 | J132: 食堂使用
A133: =SUBTOTAL(103,$B$2:B132)*1 -> 131 | B133: 灰地垫 | C133: 长180cm*宽80cm；加密胶圈 | D133: 6 | E133: 张 | J133: 食堂使用
A134: =SUBTOTAL(103,$B$2:B133)*1 -> 132 | B134: 红地毯 | C134: 红色绒面；300cm*180cm | D134: 2 | E134: 张 | J134: 本部门口
A135: =SUBTOTAL(103,$B$2:B134)*1 -> 133 | B135: 红地毯 | C135: 红色绒面；240cm*120cm | D135: 2 | E135: 张 | J135: 本部过道
A136: =SUBTOTAL(103,$B$2:B135)*1 -> 134 | B136: 红地毯 | C136: 红色绒面；长120cm*宽80cm | D136: 8 | E136: 张 | J136: 本部侧面
A137: =SUBTOTAL(103,$B$2:B136)*1 -> 135 | B137: 灰地垫 | C137: 灰色 加密胶圈长120cm*宽80cm | D137: 8 | E137: 张 | J137: 本部侧面
A138: =SUBTOTAL(103,$B$2:B137)*1 -> 136 | B138: 切肉刀 | C138: 全长311mm；刀长185mm | D138: 1 | E138: 把
A139: =SUBTOTAL(103,$B$2:B138)*1 -> 137 | B139: 环保手提袋 | C139: 300*380*100mm | D139: 100 | E139: 个
A140: =SUBTOTAL(103,$B$2:B139)*1 -> 138 | B140: 乒乓球 | C140: 100个；一星 | D140: 1 | E140: 包
A141: =SUBTOTAL(103,$B$2:B140)*1 -> 139 | B141: 清新剂 | C141: 200ml | D141: 20 | E141: 支 | J141: 卫生间专用
A142: =SUBTOTAL(103,$B$2:B141)*1 -> 140 | B142: 空气清新剂喷雾 | C142: 300ML | D142: 80 | E142: 瓶
A143: =SUBTOTAL(103,$B$2:B142)*1 -> 141 | B143: 香薰机 | C143: 支持APP控制 | D143: 1 | E143: 个
A144: =SUBTOTAL(103,$B$2:B143)*1 -> 142 | B144: 地拖桶 | C144: 加厚宽家用拖把桶脱水桶懒人免水洗拖地神器长方形手提塑料挤水桶 | D144: 1 | E144: 个
A145: =SUBTOTAL(103,$B$2:B144)*1 -> 143 | B145: 抽水器 | C145: 电动驱动 | D145: 3 | E145: 个
A146: =SUBTOTAL(103,$B$2:B145)*1 -> 144 | B146: 一次性丁腈手套 | C146: XL；食品级；白色；100只/盒 | D146: 10 | E146: 盒
A147: =SUBTOTAL(103,$B$2:B146)*1 -> 145 | B147: 磨刀石 | D147: 1 | E147: 块
A148: =SUBTOTAL(103,$B$2:B147)*1 -> 146 | B148: 方筛 | C148: 白色PE塑胶；38*27*12cm以上 | D148: 5 | E148: 个
A149: =SUBTOTAL(103,$B$2:B148)*1 -> 147 | B149: 圆筛 | C149: 白色PE塑胶；直径41CM | D149: 4 | E149: 个
A150: =SUBTOTAL(103,$B$2:B149)*1 -> 148 | B150: 不锈钢漏勺 | C150: 直径32cm | D150: 2 | E150: 个
A151: =SUBTOTAL(103,$B$2:B150)*1 -> 149 | B151: 大锅长柄铲 | C151: 长1.5米 | D151: 1 | E151: 把
A152: =SUBTOTAL(103,$B$2:B151)*1 -> 150 | B152: “生日快乐”模具 | C152: 3.2-4cm | D152: 2 | E152: 个
A153: =SUBTOTAL(103,$B$2:B152)*1 -> 151 | B153: 煎蛋模具 | C153: 304不锈钢 | D153: 8 | E153: 个
A154: =SUBTOTAL(103,$B$2:B153)*1 -> 152 | B154: 烧碱 | C154: 500g | D154: 5 | E154: 包
A155: =SUBTOTAL(103,$B$2:B154)*1 -> 153 | B155: 可回收垃圾桶 | C155: 240L | D155: 1 | E155: 个
A156: =SUBTOTAL(103,$B$2:B155)*1 -> 154 | B156: 餐余垃圾桶 | C156: 240L | D156: 1 | E156: 个
A157: =SUBTOTAL(103,$B$2:B156)*1 -> 155 | B157: pe砧板 | C157: 45*30*1cm；双面抗菌 | D157: 1 | E157: 块
A158: =SUBTOTAL(103,$B$2:B157)*1 -> 156 | B158: 一次性口罩 | C158: 100只/盒，独立包装 | D158: 20 | E158: 盒
A159: 合计（不含税）： 元
A160: 供应商（加盖公章）
A161: 1.本次所报价格为不含销项税额，包含报价人完成合同义务（含报价人代缴代扣、施工、采购货物等所产生的价税）的其他全部费用。本采购项目的销项税额由采购人承担，不计入报价。报价均包括但不限于以下内容涉及的费用：包含本合同项下所供货物及其的附件、备品备件的采购、制造、检测、试验、送货、装卸（含二次搬运至采购人指定仓储地点）、安装调试、保险、现场仓储、免费上门提供售后服务及报价人销项税额以外的税费等相关服务的全部费用。 2.不含税报价不得高于本项目不含税总采购限价66,343.40元，否则视为无效报价。 3.分项报价表与总价报价表不一致的，以总价报价表为准，调整分项报价表。 4.本报价表不允许调整，擅自修改，将视为无效报价。
A162: 交货地址： 1.公司本部：广东省东莞市南城街道滨河路100号（无电梯） 2.第一工程管理处：东莞市范围内 3.第二工程管理处：东莞市范围内 4.第三工程管理处：东莞市范围内 5.污泥处置管理处：东莞市范围内

Sheet WpsReserved_CellImgList (hidden)
